[Event "ESCC-65 2022"]
[Site "Lublin"]
[Date "2022.07.05"]
[Round "1.7"]
[White "Patola, Eero"]
[Black "Malesevic, Nedeljko"]
[Result "0-1"]
[ECO "A36"]
[WhiteElo "1810"]
[BlackElo "2228"]
[Annotator "TA"]
[PlyCount "70"]
[EventDate "2022.07.05"]
[EventType "swiss"]
[EventCountry "POL"]
[SourceTitle "playchess.com"]
[Source "ChessBase"]
[SourceQuality "1"]
[TimeControl "40/5400+30:1800+30"]

{[%evp 9,70,-4,16,8,22,0,14,9,18,10,21,16,56,66,88,0,12,-53,-52,-45,0,0,12,0,25,-35,0,0,0,-67,-51,-69,-52,-58,-75,-96,-63,-93,-90,-74,-110,-330,-323,-752,-757,-792,-754,-6207,-6207,-6207,-6118,-5506,-5095,-29975,-6307,-29982,-29983,-29983,-29982,-29982,-29983,-29983,-29984]} 1. c4 {[%emt 0:00:09]} c5 {[%emt 0:00:17]} 2. Nc3 {[%emt 0:00:09]} Nc6 {[%emt 0:00:30]} 3. g3 {[%emt 0:00:32]} d6 {[%emt 0:02:48]} 4. Bg2 {[%emt 0:00:16]} g6 {[%emt 0:00:33]} 5. e4 {[%emt 0:00:42]} e5 {[%emt 0:03:28]} 6. d3 {[%emt 0:00:40] [#] A36: Symmetrical English vs ...g6: 4 Bg2 Bg7.} h5 $146 {[%emt 0:02:06]} ({Predecessor:} 6... Bg7 7. Nge2 Nge7 8. a3 O-O 9. O-O a6 10. Rb1 Rb8 11. b4 cxb4 12. axb4 b5 13. cxb5 axb5 14. Be3 Be6 15. Qd2 Nd4 16. Bxd4 exd4 17. Nd5 Nxd5 18. exd5 {0-1 (45) Fogarasi,T (2465)-Nguyen,N (2431) Budapest 2004}) 7. h4 {[%emt 0:05:50]} Bh6 {[%emt 0:02:34]} 8. Nd5 {[%emt 0:05:23] The position is equal.} Be6 {[%emt 0:07:01]} 9. Ne2 {[%emt 0:05:56]} Bxc1 {[%emt 0:02:06]} 10. Rxc1 {[%emt 0:02:35]} Bxd5 {[%emt 0:08:04]} 11. cxd5 {[%emt 0:02:55]} Qa5+ {[%emt 0:11:18]} 12. Nc3 {[%emt 0:04:32]} (12. Qd2 $16 Qxd2+ 13. Kxd2) 12... Nd4 $11 {[%emt 0:02:33]} 13. Qa4+ {[%emt 0:05:36]} (13. O-O $11) 13... Qxa4 $15 {[%emt 0:00:49]} 14. Nxa4 {[%emt 0:00:07]} Ne7 {[%emt 0:05:39] Pair of Knights!} 15. f4 {[%emt 0:01:38]} f6 {[%emt 0:02:40]} 16. Nc3 {[%emt 0:01:32]} O-O {[%emt 0:04:34]} 17. Nd1 {[%emt 0:00:54]} (17. Ne2 $11) 17... b5 {[%emt 0:02:14]} 18. Ne3 {[%emt 0:02:18]} Rae8 {[%emt 0:01:45]} 19. Rf1 {[%emt 0:01:45] [#]} (19. Kd2 $11) 19... Nef5 $1 {[%emt 0:04:25]} 20. Nxf5 {[%emt 0:15:33]} gxf5 {[%emt 0:00:30]} 21. fxe5 {[%emt 0:05:40]} fxe5 {[%emt 0:04:44]} 22. Kd2 {[%emt 0:01:46]} Re7 {[%emt 0:01:53]} 23. Bh3 {[%emt 0:13:22][%cal Rh3f5]} Rg7 {[%emt 0:02:52] Black is more active.} 24. Bxf5 {[%emt 0:02:10]} Rxg3 {[%emt 0:02:59] Hoping for ...Rg2+.} 25. Be6+ $2 {[%emt 0:01:55] This move loses the game for White.} (25. b4 $17 {was necessary.}) 25... Kg7 $19 {[%emt 0:00:33]} 26. Rxf8 $2 {[%emt 0:01:39]} (26. Rcd1) 26... Rg2+ {[%emt 0:00:37][%mdl 64] [#] Skewer, Zwischenzug} ({Stronger than} 26... Kxf8 27. Rf1+ Rf3 28. Rg1 $19) 27. Kd1 {[%emt 0:08:43]} Kxf8 {[%emt 0:00:36][%mdl 4096] Endgame KRB-KRN} 28. b4 {[%emt 0:00:48]} Rg1+ {[%emt 0:03:36]} 29. Kd2 {[%emt 0:00:19]} Rxc1 {[%emt 0:00:14]} 30. Kxc1 {[%emt 0:00:17]} Nxe6 {[%emt 0:00:13]} 31. dxe6 {[%emt 0:00:29]} cxb4 {[%emt 0:00:08] ( -> ...Ke7). KP-KP} 32. d4 {[%emt 0:02:36]} exd4 {[%emt 0:00:14] Black mates.} 33. Kd2 {[%emt 0:00:16]} Ke7 {[%emt 0:00:12]} 34. Kd3 {[%emt 0:00:10]} Kxe6 {[%emt 0:00:11]} 35. Kxd4 {[%emt 0:00:11]} a5 {[%emt 0:00:09] Weighted Error Value: White=1.12/Black=0.08 (flawless)} 0-1

[Event "ESCC-65 2022"]
[Site "Lublin"]
[Date "2022.07.05"]
[Round "1.8"]
[White "Schulz, Michael"]
[Black "Chubar, Vladimir"]
[Result "1-0"]
[ECO "B06"]
[WhiteElo "2217"]
[BlackElo "1809"]
[Annotator "TA"]
[PlyCount "55"]
[EventDate "2022.07.05"]
[EventType "swiss"]
[EventCountry "POL"]
[SourceTitle "playchess.com"]
[Source "ChessBase"]
[SourceQuality "1"]
[TimeControl "40/5400+30:1800+30"]

{[%evp 9,55,6,23,38,22,19,26,45,179,187,449,147,366,254,661,666,669,655,637,640,681,656,643,510,673,658,829,846,1044,1037,1308,1310,1921,1908,1891,1822,2134,2202,29979,29980,29990,29991,29992,29993,29997,29998,29998,29999]} 1. e4 {[%emt 0:00:04]} g6 {[%emt 0:00:16]} 2. d4 {[%emt 0:00:09]} Bg7 {[%emt 0:00:26]} 3. h4 {[%emt 0:01:05]} h6 {[%emt 0:03:47]} 4. h5 {[%emt 0:00:41]} g5 {[%emt 0:00:54]} 5. f4 {[%emt 0:00:36]} gxf4 {[%emt 0:00:57]} 6. Bxf4 {[%emt 0:00:11] B06: Modern Defence.} c5 {[%emt 0:01:14] [#]} 7. c3 $146 {[%emt 0:01:25]} ({Much worse is} 7. dxc5 Bxb2 8. Nd2 Bxa1 9. Qxa1 Nf6 $15) ({Predecessor:} 7. Nf3 cxd4 8. Nxd4 Qb6 9. Nb5 Na6 10. N1c3 d6 11. Nd5 Qa5+ 12. c3 Bd7 13. a4 {0-1 (39) Sieciechowicz,M (2399)-Pechen,Y (2697) Chess.com INT 2019}) 7... Qb6 {[%emt 0:01:11][%cal Rc5d4]} 8. Nf3 {[%emt 0:04:18] White has an edge.} Qxb2 {[%emt 0:02:31]} (8... Nf6 $14) 9. Nbd2 $18 {[%emt 0:00:09]} cxd4 $2 {[%emt 0:03:01] [#]} (9... Qxc3 {was necessary.} 10. Rc1 Qb4) 10. Rb1 $2 {[%emt 0:00:17]} ({Less strong is} 10. cxd4 Qb6 $16) (10. Nc4 $1 $18 {[%cal Rc4b2]} Qxc3+ 11. Bd2) 10... Qa3 {[%emt 0:02:55]} (10... Qxc3 $2 11. Rc1 $18) (10... Qxa2 $16 11. Nxd4 d5) 11. cxd4 {[%emt 0:00:24]} Nc6 $2 {[%emt 0:02:11] [#]} (11... Qa5 12. Qc2 Na6) 12. Nc4 $1 {[%emt 0:02:04]} Qxa2 {[%emt 0:10:32][%cal Oc6d4]} 13. Rb2 {[%emt 0:00:11]} Qxb2 {[%emt 0:04:12]} 14. Nxb2 {[%emt 0:00:08]} d6 {[%emt 0:02:00]} 15. Bb5 {[%emt 0:02:22]} Bd7 {[%emt 0:03:27]} 16. Qc2 {[%emt 0:04:22] aiming for d5.} a6 {[%emt 0:07:49]} 17. Bxc6 {[%emt 0:00:56]} bxc6 {[%emt 0:01:20]} 18. e5 {[%emt 0:01:51] Prevents Nf6.} Rc8 {[%emt 0:04:27]} 19. Nc4 {[%emt 0:03:56]} c5 {[%emt 0:05:32]} 20. Nb6 {[%emt 0:01:57]} Rc6 {[%emt 0:03:36]} 21. Nxd7 {[%emt 0:01:15]} Kxd7 {[%emt 0:00:19]} 22. Qf5+ {[%emt 0:07:14]} Ke8 {[%emt 0:08:07]} 23. d5 {[%emt 0:00:28]} Rc7 {[%emt 0:05:46]} 24. O-O {[%emt 0:02:03][%cal Bh1f1,Bf1b1,Bb1b8][%mdl 32] White mates.} e6 {[%emt 0:13:27]} 25. dxe6 {[%emt 0:01:08]} d5 {[%emt 0:02:41]} 26. Rb1 {[%emt 0:02:20]} fxe6 {[%emt 0:02:35]} 27. Qxe6+ {[%emt 0:00:10]} Ne7 {[%emt 0:01:37]} 28. Rb8+ {[%emt 0:00:10] Black got outplayed after the opening.  Weighted Error Value: White=0.47/Black=1.02} 1-0

[Event "ESCC-65 2022"]
[Site "Lublin"]
[Date "2022.07.05"]
[Round "1.9"]
[White "Krupa, Jerzy"]
[Black "Lederman, Leon"]
[Result "0-1"]
[ECO "B95"]
[WhiteElo "1771"]
[BlackElo "2213"]
[Annotator "TA"]
[PlyCount "91"]
[EventDate "2022.07.05"]
[EventType "swiss"]
[EventCountry "POL"]
[SourceTitle "playchess.com"]
[Source "ChessBase"]
[SourceQuality "1"]
[TimeControl "40/5400+30:1800+30"]

{[%evp 17,91,-16,0,-2,-10,-23,0,-16,0,0,0,-25,0,-9,-20,-39,14,-42,145,-47,-33,-50,-12,-20,20,-56,-43,-70,-29,-33,-33,-85,-85,-84,-83,-97,-53,-68,-52,-53,0,0,0,0,0,-30,-3,-12,0,-99,-98,-133,-125,-103,-69,-73,-35,-359,-345,-345,-308,-275,-23,-15,0,0,0,0,0,-12833,-12834,-12834,-12835,-12841,-12841,-12841]} 1. e4 {[%emt 0:00:04]} c5 {[%emt 0:00:04]} 2. Nf3 {[%emt 0:00:06]} d6 {[%emt 0:00:04]} 3. d4 {[%emt 0:00:25]} cxd4 {[%emt 0:00:06]} 4. Nxd4 {[%emt 0:00:02]} Nf6 {[%emt 0:00:06]} 5. Nc3 {[%emt 0:00:06]} a6 {[%emt 0:00:04]} 6. Bg5 {[%emt 0:00:18]} e6 {[%emt 0:00:13]} 7. Qd2 {[%emt 0:00:28]} h6 {[%emt 0:00:30]} 8. Be3 {[%emt 0:03:50]} Ng4 {[%emt 0:00:15]} 9. O-O-O {[%emt 0:00:09]} Be7 {[%emt 0:00:08]} 10. Be2 {[%emt 0:01:36] B95: Sicilian Najdorf: 6 Bg5 e6, unusual White 7th moves.} Nxe3 {[%emt 0:00:07]} 11. Qxe3 {[%emt 0:00:02]} Qc7 {[%emt 0:01:57]} 12. Kb1 {[%emt 0:00:28] [#] The position is equal.} O-O $146 {[%emt 0:00:21]} ({Predecessor:} 12... Bd7 13. f4 b5 14. Bf3 b4 15. Nce2 Nc6 16. Nxc6 Bxc6 17. Nd4 Bd7 18. f5 e5 {½-½ (40) Perez,I (1805)-Gonzalez,G (2180) Spain 1998}) 13. f4 {[%emt 0:00:23]} Nc6 {[%emt 0:00:49]} 14. Nf3 {[%emt 0:04:22]} b5 {[%emt 0:02:21][%cal Bb7b5,Bb5b4,Bb4c3][%mdl 32]} 15. g4 {[%emt 0:05:50]} Bd7 {[%emt 0:03:44]} (15... b4 $5 16. Na4 Rb8 $11) 16. g5 {[%emt 0:02:42]} h5 {[%emt 0:00:20]} (16... hxg5 $1 $15 17. fxg5 b4) 17. Nh4 {[%emt 0:07:52]} (17. Bd3 $1 $11) 17... g6 $2 {[%emt 0:02:52] [#]} (17... b4 $15 {stays ahead.} 18. Na4 Rab8) 18. f5 $2 {[%emt 0:01:39]} (18. Bxh5 $1 $16 {[%cal Oe3h3][%mdl 512] Qh3! is the strong threat.} b4 19. Ne2) 18... Ne5 $15 {[%emt 0:00:49] Threatens to win with ...b4.} 19. f6 {[%emt 0:14:57] Hoping for Nf5.} b4 {[%emt 0:05:24] And now ...Bd8 would win.} (19... Bd8 $5 {[%cal Rb5b4]} 20. Qd4 Qb7 $11) 20. fxe7 {[%emt 0:05:19]} Rfc8 {[%emt 0:00:56] [#]} (20... Rfb8 $5 {[%cal Rb4c3]}) 21. Qd4 {[%emt 0:10:57]} bxc3 {[%emt 0:01:24]} 22. Qxd6 {[%emt 0:00:56]} cxb2 {[%emt 0:12:36][%csl Gc8][%cal Rc7c2] The board is on fire.} 23. Qxc7 {[%emt 0:04:10]} Rxc7 {[%emt 0:00:05]} 24. Rd2 {[%emt 0:00:05] [#]} ({Better is} 24. Nf3 $15 Nc6 25. Rd6) 24... Re8 $1 $17 {[%emt 0:00:42]} 25. Bxa6 {[%emt 0:03:41]} Rxe7 {[%emt 0:00:10]} 26. Rd4 {[%emt 0:11:16]} Re8 {[%emt 0:02:23][%cal Be7e8,Be8a8,Ba8a5][%mdl 32]} 27. Rhd1 {[%emt 0:00:25]} Ra8 {[%emt 0:00:47]} 28. Be2 {[%emt 0:02:03]} Kf8 {[%emt 0:01:36]} (28... Ba4 $15 29. Rd8+ Rxd8 30. Rxd8+ Kg7) 29. Nf3 $11 {[%emt 0:02:37]} Nxf3 {[%emt 0:02:52]} 30. Bxf3 {[%emt 0:00:35]} Ke7 {[%emt 0:00:06]} 31. R1d2 {[%emt 0:03:29]} ({But not} 31. Kxb2 Rb7+ 32. Kc1 Rxa2 $15) 31... Ra5 {[%emt 0:05:29]} 32. h4 $1 {[%emt 0:00:55]} Rca7 {[%emt 0:01:40]} 33. c3 {[%emt 0:06:25]} (33. Be2 $1 $11) 33... Ra3 $17 {[%emt 0:00:47]} (33... e5 {looks sharper.} 34. Rd5 Ra3 35. Bd1 Rxc3 36. Bb3 Rb7) 34. Rxb2 {[%emt 0:01:39]} Rxc3 {[%emt 0:00:28]} 35. Rb3 {[%emt 0:00:06]} Rc5 {[%emt 0:00:29]} 36. Kb2 {[%emt 0:02:26]} e5 {[%emt 0:02:17]} 37. Rd5 {[%emt 0:02:12][%mdl 8192]} (37. Rdb4 $15) 37... Rxd5 $19 {[%emt 0:00:33]} 38. exd5 {[%emt 0:00:02][%mdl 4096] Endgame KRB-KRB} Ra4 {[%emt 0:00:07]} 39. Re3 {[%emt 0:02:48]} Kd6 {[%emt 0:00:12]} ({Black should play} 39... Rxh4 $19 {White must now prevent ...Kd6.} 40. Rxe5+ Kd6) 40. Re4 $1 $11 {[%emt 0:00:00]} Rxe4 {[%emt 0:00:00]} 41. Bxe4 {[%emt 0:00:48] KB-KB} Bf5 {[%emt 0:03:01]} 42. Bc2 {[%emt 0:05:30] Strongly threatening Bb3.} Kxd5 {[%emt 0:15:36] aiming for ...Kd4.} 43. Bb3+ $2 {[%emt 0:01:07][%mdl 8192]} (43. Kc3 $11) 43... Kd4 $19 {[%emt 0:00:04] Black is clearly winning.} 44. a4 {[%emt 0:04:06]} e4 {[%emt 0:12:30][%cal Be5e4,Be4e3][%mdl 32]} 45. a5 {[%emt 0:04:00]} e3 {[%emt 0:01:18] ( -> ...e2)} 46. Kc1 {[%emt 0:00:50] Weighted Error Value: White=0.59/Black=0.34} 0-1

[Event "ESCC-65 2022"]
[Site "Lublin"]
[Date "2022.07.05"]
[Round "1.10"]
[White "Chapman, Terry P D"]
[Black "Sosnowska, Elzbieta"]
[Result "1-0"]
[ECO "D33"]
[WhiteElo "2207"]
[BlackElo "1726"]
[Annotator "TA"]
[PlyCount "49"]
[EventDate "2022.07.05"]
[EventType "swiss"]
[EventCountry "POL"]
[SourceTitle "playchess.com"]
[Source "ChessBase"]
[SourceQuality "1"]
[TimeControl "40/5400+30:1800+30"]

{[%evp 21,49,73,69,47,103,93,95,95,93,106,164,170,168,179,181,171,219,225,243,232,493,506,500,494,635,630,640,645,661,662]} 1. d4 {[%emt 0:00:03]} d5 {[%emt 0:00:07]} 2. c4 {[%emt 0:00:06]} e6 {[%emt 0:00:08]} 3. Nc3 {[%emt 0:00:06]} c5 {[%emt 0:00:16]} 4. cxd5 {[%emt 0:00:11]} exd5 {[%emt 0:00:13]} 5. Nf3 {[%emt 0:00:18]} Nc6 {[%emt 0:00:10]} 6. g3 {[%emt 0:00:23]} c4 {[%emt 0:00:10]} 7. Bg2 {[%emt 0:00:14]} Bb4 {[%emt 0:00:07]} 8. O-O {[%emt 0:00:11]} Nge7 {[%emt 0:00:27]} 9. e4 {[%emt 0:00:24]} O-O {[%emt 0:00:07]} 10. exd5 {[%emt 0:00:14]} Nxd5 {[%emt 0:00:48]} 11. Nxd5 {[%emt 0:00:07]} Qxd5 {[%emt 0:00:06]} 12. Be3 {[%emt 0:00:19] D33: Tarrasch Defence: 6 g3 sidelines.} Bg4 {[%emt 0:05:26] [#]} (12... Qb5 $14) 13. Ne5 $1 $16 {[%emt 0:02:07]} Qxg2+ {[%emt 0:00:55]} 14. Kxg2 {[%emt 0:00:08] White is better.} Bxd1 {[%emt 0:00:10] [#] A strong pair of Bishops.} 15. Nxc6 $1 {[%emt 0:11:36] [#]} ({Don't take} 15. Rfxd1 Na5 $14) 15... Bf3+ $146 {[%emt 0:07:44]} (15... bxc6 $16 16. Rfxd1 Rfb8) ({Predecessor:} 15... bxc6 16. Rfxd1 Bd6 17. Rac1 Rfb8 18. Rxc4 Rxb2 19. Rxc6 Rd8 20. Ra6 Rd7 21. Rd2 Rxd2 22. Bxd2 {½-½ (42) Wintzer,J (2335)-Comp Fritz 3 Bonn 1995}) 16. Kxf3 $18 {[%emt 0:00:46]} bxc6 {[%emt 0:00:05]} 17. Rfc1 {[%emt 0:06:51]} c3 {[%emt 0:00:54]} 18. bxc3 {[%emt 0:00:15]} Ba3 {[%emt 0:01:02]} (18... Ba5 {was necessary.} 19. Rab1 f6) 19. Rcb1 {[%emt 0:17:42]} Rab8 {[%emt 0:14:38]} 20. Rb3 {[%emt 0:02:09]} Bb2 {[%emt 0:05:00]} (20... Bd6 21. Rab1 Rfd8 22. Rxb8 Rxb8 23. Rxb8+ Bxb8) 21. Rxb8 {[%emt 0:05:17] White is clearly winning.} Bxa1 {[%emt 0:00:15]} 22. Rb3 {[%emt 0:02:28]} f6 {[%emt 0:15:01]} 23. Ke4 {[%emt 0:06:45]} Rd8 {[%emt 0:11:58]} 24. Kd3 {[%emt 0:03:05]} c5 {[%emt 0:01:37]} 25. Rb1 {[%emt 0:01:37] White took control after the opening.  Weighted Error Value: White=0.00 (flawless) /Black=0.52} 1-0

[Event "ESCC-65 2022"]
[Site "Lublin"]
[Date "2022.07.05"]
[Round "1.11"]
[White "Virtanen, Esko"]
[Black "Biro, Sandor"]
[Result "0-1"]
[ECO "D93"]
[WhiteElo "1709"]
[BlackElo "2116"]
[Annotator "TA"]
[PlyCount "58"]
[EventDate "2022.07.05"]
[EventType "swiss"]
[EventCountry "POL"]
[SourceTitle "playchess.com"]
[Source "ChessBase"]
[SourceQuality "1"]
[TimeControl "40/5400+30:1800+30"]

{[%evp 17,58,-37,0,0,0,-11,14,-21,32,35,28,29,29,33,35,0,0,-42,-46,-63,-45,-93,-93,-100,-91,-141,-85,-84,-84,-109,-82,-82,-82,-82,-82,-82,-67,-80,-82,-92,-92,-29995,-29996]} 1. Nf3 {[%emt 0:00:05]} Nf6 {[%emt 0:00:09]} 2. d4 {[%emt 0:00:08]} g6 {[%emt 0:00:08]} 3. c4 {[%emt 0:00:14]} Bg7 {[%emt 0:00:07]} 4. Nc3 {[%emt 0:00:09]} d5 {[%emt 0:00:08]} 5. Bf4 {[%emt 0:00:29]} O-O {[%emt 0:00:12]} 6. e3 {[%emt 0:00:10]} c5 {[%emt 0:00:31]} 7. Be2 {[%emt 0:03:28]} Nc6 {[%emt 0:01:41]} 8. O-O {[%emt 0:00:32]} cxd4 {[%emt 0:06:43]} 9. exd4 {[%emt 0:03:51]} Be6 {[%emt 0:04:36]} 10. c5 {[%emt 0:02:23] D94: Grünfeld: 4 Nf3 Bg7 5 e3.} Ne4 {[%emt 0:00:54]} 11. Rc1 {[%emt 0:02:29][%cal Ba1c1,Bc1c3,Bc3d3,Bd3d4][%mdl 32]} h6 {[%emt 0:04:31] [#]} 12. Ne5 $146 {[%emt 0:05:23] The position is equal.} ({Predecessor:} 12. Qa4 g5 13. Be3 f5 14. Rfd1 f4 15. Bd2 g4 16. Ne5 Nxe5 17. dxe5 f3 18. gxf3 gxf3 {½-½ (53) Vasiljevs,J (2070)-Muschik,B (2284) Duesseldorf 2009}) 12... Nxc3 {[%emt 0:05:57]} (12... Nxe5 $11 13. Bxe5 Bxe5 14. dxe5 Nxc5) 13. Rxc3 $14 {[%emt 0:00:38]} Nxe5 {[%emt 0:08:30]} 14. Bxe5 {[%emt 0:00:13]} Bxe5 {[%emt 0:10:30]} 15. dxe5 {[%emt 0:00:18]} d4 {[%emt 0:00:40]} 16. Rd3 {[%emt 0:02:25]} Qd5 {[%emt 0:00:21]} 17. Rxd4 {[%emt 0:00:17]} Qxc5 {[%emt 0:00:14]} 18. b3 {[%emt 0:01:18]} Qxe5 {[%emt 0:02:39]} 19. Bc4 {[%emt 0:02:33]} (19. Bf3 $15 {is superior.}) 19... Bxc4 $17 {[%emt 0:00:43]} 20. Rxc4 {[%emt 0:00:01]} b5 {[%emt 0:25:57]} 21. Re1 {[%emt 0:03:36]} (21. Rd4 $142) 21... Qf6 {[%emt 0:10:53]} (21... Rfd8 $142 22. Qc1 Qxe1+ 23. Qxe1 bxc4 24. bxc4 Rac8) 22. Rc7 {[%emt 0:01:14] [#]} e6 $1 {[%emt 0:02:32]} 23. Qd7 {[%emt 0:01:55]} Rad8 {[%emt 0:02:14]} 24. Qxb5 {[%emt 0:00:39]} Rd2 {[%emt 0:01:54][%csl LRa2,LRf2]} 25. Qc5 {[%emt 0:01:59]} Rxa2 $40 {[%emt 0:02:28][%mdl 128] Black is out for blood.} 26. Rxa7 {[%emt 0:00:11]} Rd2 {[%emt 0:01:13]} 27. g3 {[%emt 0:01:07]} Rfd8 {[%emt 0:01:10]} 28. Kg2 {[%emt 0:00:54]} R8d3 {[%emt 0:00:46] White must now prevent ...Qf3+.} ({But not} 28... R2d3 $6 29. Re3 $11) 29. Re3 {[%emt 0:00:52][%mdl 8192] [#] Against Qf3+} (29. Rf1 $17) 29... Qxf2+ {[%emt 0:00:36] Weighted Error Value: White=0.62/Black=0.13 (very precise)} 0-1

[Event "ESCC-65 2022"]
[Site "Lublin"]
[Date "2022.07.05"]
[Round "1.12"]
[White "Neumann, Joachim"]
[Black "Gromowski, Stanislaw"]
[Result "1/2-1/2"]
[ECO "A15"]
[WhiteElo "2082"]
[BlackElo "1613"]
[Annotator "TA"]
[PlyCount "97"]
[EventDate "2022.07.05"]
[EventType "swiss"]
[EventCountry "POL"]
[SourceTitle "playchess.com"]
[Source "ChessBase"]
[SourceQuality "1"]
[TimeControl "40/5400+30:1800+30"]

{[%evp 9,97,14,18,16,30,29,47,38,43,38,52,52,55,49,62,62,71,65,89,86,84,87,97,73,97,77,81,86,106,83,119,135,133,133,156,139,167,146,171,193,185,104,192,82,83,83,86,81,81,61,96,72,70,54,54,54,47,39,52,13,15,-53,0,0,0,-50,-17,-93,-86,-312,0,-320,-297,-277,0,-68,-72,-143,-146,-147,-137,-149,0,0,0,-149,0,-150,-152,-142]} 1. c4 {[%emt 0:00:03]} Nf6 {[%emt 0:00:29]} 2. g3 {[%emt 0:00:56]} e6 {[%emt 0:01:00]} 3. Bg2 {[%emt 0:00:35]} c6 {[%emt 0:00:38]} 4. Nf3 {[%emt 0:02:26]} Be7 {[%emt 0:01:50]} 5. O-O {[%emt 0:03:10]} O-O {[%emt 0:00:09]} 6. b3 {[%emt 0:01:37] A15: English Opening: 1...Nf6.} d6 {[%emt 0:00:36]} 7. Bb2 {[%emt 0:03:17]} Nbd7 {[%emt 0:00:26]} 8. Nc3 {[%emt 0:05:57] White is slightly better.} Rb8 {[%emt 0:00:56] [#]} 9. Rc1 $146 {[%emt 0:02:32]} ({Predecessor:} 9. Qc2 Re8 10. e4 e5 11. Ne2 c5 12. d3 Nf8 13. Nd2 Ne6 14. Rae1 Bd7 15. f4 {½-½ (36) Crowley,J-Rogers,K Dublin 1998}) 9... Re8 {[%emt 0:00:21]} 10. e4 {[%emt 0:06:35]} e5 {[%emt 0:00:58]} 11. d4 {[%emt 0:00:29]} exd4 {[%emt 0:03:37]} 12. Nxd4 {[%emt 0:00:22]} Bf8 {[%emt 0:00:41]} 13. Re1 {[%emt 0:02:38]} Ne5 {[%emt 0:04:56]} 14. h3 {[%emt 0:02:21]} Bd7 {[%emt 0:00:55]} 15. f4 {[%emt 0:06:58]} Ng6 {[%emt 0:00:27]} 16. Qd2 {[%emt 0:03:19]} h6 {[%emt 0:00:38]} 17. Rcd1 {[%emt 0:06:13]} Qc8 {[%emt 0:07:11]} 18. Kh2 {[%emt 0:00:16]} a6 {[%emt 0:01:42]} 19. Nc2 {[%emt 0:07:34]} Qc7 {[%emt 0:02:27]} 20. Ba3 {[%emt 0:02:50][%cal Ra3d6]} c5 {[%emt 0:00:45]} 21. Ne3 {[%emt 0:10:29]} Bc6 {[%emt 0:03:19]} 22. Qc2 {[%emt 0:04:08]} Rbd8 {[%emt 0:01:17]} 23. Bb2 {[%emt 0:05:49]} Qb8 {[%emt 0:09:54]} 24. Ncd5 {[%emt 0:08:27]} Nxd5 {[%emt 0:01:01]} 25. Nxd5 {[%emt 0:01:37]} (25. cxd5 $18 Bd7 26. h4) 25... Bxd5 {[%emt 0:05:03]} (25... b5 $16 26. h4 Ne7) 26. Rxd5 {[%emt 0:00:43]} ({Much less strong is} 26. exd5 Rxe1 27. Rxe1 Re8 $16) (26. cxd5 $18 {has better winning chances. Threatens to win with h4.} b5 27. h4) 26... Ne7 $16 {[%emt 0:00:20]} 27. Rd2 {[%emt 0:00:13] White is much more active.} Nc6 {[%emt 0:00:10]} 28. Red1 {[%emt 0:00:19]} Qc7 {[%emt 0:01:54]} 29. a3 {[%emt 0:00:14]} Rd7 {[%emt 0:03:13]} 30. e5 {[%emt 0:01:02]} Rdd8 {[%emt 0:02:38][%cal Rd6e5]} 31. exd6 {[%emt 0:04:07]} Rxd6 {[%emt 0:08:36]} 32. Rxd6 {[%emt 0:01:44]} Bxd6 {[%emt 0:00:09]} 33. Qd3 {[%emt 0:03:37] Inhibits Re3.} Rd8 {[%emt 0:01:55][%cal Od6e5]} ({Less strong is} 33... Nd4 34. b4 Be7 35. Bxd4 cxd4 36. Qxd4 $16) 34. Bxc6 {[%emt 0:01:22]} Qxc6 {[%emt 0:00:41]} 35. Be5 {[%emt 0:00:46]} (35. Qc3 $11 f6 36. Rd5) 35... Be7 {[%emt 0:00:35]} (35... Bc7 $15 36. Qf1 Rxd1 37. Qxd1 Bxe5 38. fxe5 Qe4) 36. Qe2 $11 {[%emt 0:00:01]} Re8 {[%emt 0:02:07]} 37. Qb2 {[%emt 0:00:21]} ({White should play} 37. Rd5 $11) 37... Bf8 {[%emt 0:01:51] aiming for ...f6.} (37... f6 $5 38. Bc3 Bf8 $11) 38. Qd2 {[%emt 0:02:51]} (38. Qg2 $11 {remains equal.}) 38... Qf3 $17 {[%emt 0:00:54]} 39. Qd3 $2 {[%emt 0:00:10]} (39. Qc2 $17 {was necessary.}) 39... Qf2+ $19 {[%emt 0:02:12]} 40. Kh1 {[%emt 0:00:00]} f6 $1 {[%emt 0:00:00]} 41. Rf1 {[%emt 0:01:33] [#]} Qa2 {[%emt 0:01:36]} (41... Rd8 $1 $19 {[%cal Rd8d3][%mdl 512]} 42. Rxf2 (42. Bc7 Rxd3) 42... Rxd3) 42. Qd5+ {[%emt 0:14:04]} (42. Bxf6 $11 Re2 43. Qd5+ Kh8 44. Be5) 42... Kh8 $15 {[%emt 0:02:07]} 43. Qd7 {[%emt 0:01:48] [#]} (43. Qf7 $142 Qe2 44. Qxe8 Qxf1+ 45. Kh2) 43... Re7 $1 $17 {[%emt 0:02:28]} ({Stronger than} 43... Qe2 44. Qxe8 Qxf1+ 45. Kh2 $17) 44. Qd8 {[%emt 0:00:04]} Kg8 {[%emt 0:02:46]} 45. Qd5+ {[%emt 0:00:13]} Kh7 {[%emt 0:01:10]} 46. Qd3+ {[%emt 0:00:38]} Kh8 {[%emt 0:00:54]} 47. Qd8 {[%emt 0:00:24]} Kg8 {[%emt 0:00:13] White must now prevent ...Qe2.} 48. Qd5+ $1 {[%emt 0:00:14]} Rf7 {Strongly threatening ...Qe2.} 49. Bd6 {Black used his chance.  Weighted Error Value: White=0.30/Black=0.26 (precise)} 1/2-1/2